[Event "Early-Titled-Tuesday-Blitz-October-24-2023"]
[Site "Chess.com"]
[Date "2023.10.24"]
[Round "10"]
[White "vishwa_vijeta"]
[Black "wild3000"]
[Result "1-0"]
[WhiteElo "2529"]
[BlackElo "2377"]
[TimeControl "180+1"]
[EndTime "9:51:56 PDT"]
[Termination "vishwa_vijeta won by resignation"]

1. e4 {[%clk 0:03:00.9]} 1... e5 {[%clk 0:02:56.5]} 2. Nf3 {[%clk 0:02:54.4]}
2... Nc6 {[%clk 0:02:55.2]} 3. d4 {[%clk 0:02:40.7]} 3... exd4 {[%clk
0:02:54.7]} 4. Bc4 {[%clk 0:02:38.1]} 4... Be7 {[%clk 0:02:45]} 5. c3 {[%clk
0:02:28.7]} 5... d3 {[%clk 0:02:44]} 6. Qxd3 {[%clk 0:02:28.1]} 6... d6 {[%clk
0:02:43]} 7. h3 {[%clk 0:02:24.1]} 7... Nf6 {[%clk 0:02:42.9]} 8. O-O {[%clk
0:02:24.2]} 8... O-O {[%clk 0:02:42.7]} 9. Bf4 {[%clk 0:02:23.7]} 9... a6 {[%clk
0:02:24.8]} 10. Rd1 {[%clk 0:02:21.1]} 10... Nd7 {[%clk 0:02:17.9]} 11. Nbd2
{[%clk 0:02:16.9]} 11... Na5 {[%clk 0:02:13.9]} 12. Bd5 {[%clk 0:02:12.5]} 12...
Bf6 {[%clk 0:02:09]} 13. b4 {[%clk 0:02:08.5]} 13... Nc6 {[%clk 0:02:09]} 14.
Bxc6 {[%clk 0:02:04]} 14... bxc6 {[%clk 0:02:09.9]} 15. Nc4 {[%clk 0:02:04.5]}
15... Qe7 {[%clk 0:01:49.7]} 16. Re1 {[%clk 0:02:00.8]} 16... Nb6 {[%clk
0:01:30]} 17. Nxb6 {[%clk 0:01:47.7]} 17... cxb6 {[%clk 0:01:27.3]} 18. Bxd6
{[%clk 0:01:47.5]} 18... Rd8 {[%clk 0:01:22.5]} 19. e5 {[%clk 0:01:38.4]} 19...
Be6 {[%clk 0:01:16]} 20. Bxe7 {[%clk 0:01:34.9]} 20... Rxd3 {[%clk 0:01:14.7]}
21. exf6 {[%clk 0:01:34.4]} 21... Rxc3 {[%clk 0:01:10]} 22. Ng5 {[%clk
0:01:33.4]} 22... Bd5 {[%clk 0:01:06.8]} 23. Rac1 {[%clk 0:01:21.4]} 23... Ra3
{[%clk 0:00:58]} 24. b5 {[%clk 0:01:18.9]} 24... Rxa2 {[%clk 0:00:53.1]} 25.
bxc6 {[%clk 0:01:16.6]} 25... Rc8 {[%clk 0:00:53.4]} 26. c7 {[%clk 0:01:10.8]}
26... gxf6 {[%clk 0:00:49.2]} 27. Bxf6 {[%clk 0:01:08.6]} 27... h6 {[%clk
0:00:49.1]} 28. Ne4 {[%clk 0:01:06.6]} 28... Bxe4 {[%clk 0:00:39.7]} 29. Rxe4
{[%clk 0:01:07.5]} 29... Rd2 {[%clk 0:00:35.5]} 30. Rd4 {[%clk 0:00:59.3]} 30...
Rxd4 {[%clk 0:00:34.6]} 31. Bxd4 {[%clk 0:00:59.3]} 31... b5 {[%clk 0:00:34.9]}
32. Bb6 {[%clk 0:00:59.1]} 32... Kf8 {[%clk 0:00:34.4]} 33. Rd1 {[%clk
0:00:58.8]} 33... Ke7 {[%clk 0:00:31.4]} 34. Rd8 {[%clk 0:00:58.4]} 34... Rxc7
{[%clk 0:00:31.8]} 35. Bxc7 {[%clk 0:00:58.7]} 35... b4 {[%clk 0:00:31.6]} 36.
Rd4 {[%clk 0:00:57.1]} 36... b3 {[%clk 0:00:30.2]} 37. Rb4 {[%clk 0:00:56.9]}
37... Kd7 {[%clk 0:00:31.1]} 38. Bf4 {[%clk 0:00:55.8]} 1-0

[Event "Early-Titled-Tuesday-Blitz-October-24-2023"]
[Site "Chess.com"]
[Date "2023.10.24"]
[Round "10"]
[White "lamomiajunior"]
[Black "Fh2411"]
[Result "1-0"]
[WhiteElo "2660"]
[BlackElo "2520"]
[TimeControl "180+1"]
[EndTime "9:51:57 PDT"]
[Termination "lamomiajunior won on time"]

1. d4 {[%clk 0:03:00.9]} 1... Nf6 {[%clk 0:02:50.2]} 2. c4 {[%clk 0:03:01.4]}
2... e6 {[%clk 0:02:49.8]} 3. Nc3 {[%clk 0:03:01.9]} 3... Bb4 {[%clk 0:02:50.4]}
4. f3 {[%clk 0:03:02.6]} 4... c5 {[%clk 0:02:49.6]} 5. d5 {[%clk 0:03:03]} 5...
exd5 {[%clk 0:02:46.4]} 6. cxd5 {[%clk 0:03:03.1]} 6... O-O {[%clk 0:02:36.8]}
7. e4 {[%clk 0:03:02.3]} 7... d6 {[%clk 0:02:37]} 8. Bd3 {[%clk 0:03:00.3]} 8...
Nh5 {[%clk 0:02:28.9]} 9. Ne2 {[%clk 0:02:59.1]} 9... Qh4+ {[%clk 0:02:25.1]}
10. g3 {[%clk 0:02:56.2]} 10... Qh3 {[%clk 0:02:25.2]} 11. Kf2 {[%clk
0:02:14.6]} 11... a6 {[%clk 0:02:09]} 12. a3 {[%clk 0:02:13.9]} 12... Ba5 {[%clk
0:02:08.7]} 13. Be3 {[%clk 0:02:14.1]} 13... b5 {[%clk 0:02:06.9]} 14. Bc2
{[%clk 0:02:03.5]} 14... Bb6 {[%clk 0:01:37.9]} 15. Qd2 {[%clk 0:01:52.5]} 15...
Ba7 {[%clk 0:01:36.3]} 16. a4 {[%clk 0:01:34.7]} 16... b4 {[%clk 0:01:35.6]} 17.
Nd1 {[%clk 0:01:35]} 17... a5 {[%clk 0:01:16.6]} 18. b3 {[%clk 0:01:33]} 18...
Ba6 {[%clk 0:00:57.8]} 19. Ng1 {[%clk 0:01:31.1]} 19... Qc8 {[%clk 0:00:55.8]}
20. g4 {[%clk 0:01:29.8]} 20... Nf6 {[%clk 0:00:55.1]} 21. h4 {[%clk 0:01:29.7]}
21... c4 {[%clk 0:00:50]} 22. h5 {[%clk 0:01:24.4]} 22... Nfd7 {[%clk 0:00:36]}
23. h6 {[%clk 0:01:21]} 23... g6 {[%clk 0:00:32.6]} 24. Kg3 {[%clk 0:01:21]}
24... f6 {[%clk 0:00:26.2]} 25. bxc4 {[%clk 0:01:17.1]} 25... Qxc4 {[%clk
0:00:20.5]} 26. Rc1 {[%clk 0:01:14.4]} 26... Ne5 {[%clk 0:00:16.4]} 27. Bb1
{[%clk 0:01:05.6]} 27... Qf1 {[%clk 0:00:05.5]} 28. Bxa7 {[%clk 0:00:54.7]}
28... Rxa7 {[%clk 0:00:05.1]} 29. Ne3 {[%clk 0:00:55]} 1-0

[Event "Early-Titled-Tuesday-Blitz-October-24-2023"]
[Site "Chess.com"]
[Date "2023.10.24"]
[Round "10"]
[White "giomar27"]
[Black "nitpicker"]
[Result "1/2-1/2"]
[WhiteElo "2359"]
[BlackElo "2256"]
[TimeControl "180+1"]
[EndTime "9:52:10 PDT"]
[Termination "Game drawn by repetition"]

1. d4 {[%clk 0:03:00.9]} 1... Nf6 {[%clk 0:02:59.4]} 2. Nc3 {[%clk 0:03:01.2]}
2... d5 {[%clk 0:02:58.1]} 3. Bf4 {[%clk 0:03:01.3]} 3... a6 {[%clk 0:02:58.4]}
4. e3 {[%clk 0:03:01.3]} 4... e6 {[%clk 0:02:58.8]} 5. g4 {[%clk 0:03:00.3]}
5... Bd6 {[%clk 0:02:55.4]} 6. g5 {[%clk 0:02:57.9]} 6... Nfd7 {[%clk
0:02:52.4]} 7. Nf3 {[%clk 0:02:57.7]} 7... Qe7 {[%clk 0:02:47.8]} 8. h4 {[%clk
0:02:52.7]} 8... c6 {[%clk 0:02:44.5]} 9. h5 {[%clk 0:02:50.9]} 9... e5 {[%clk
0:02:43.3]} 10. Bg3 {[%clk 0:02:29.4]} 10... e4 {[%clk 0:02:34.6]} 11. Bxd6
{[%clk 0:02:26.9]} 11... Qxd6 {[%clk 0:02:35.2]} 12. Nh4 {[%clk 0:02:23.6]}
12... g6 {[%clk 0:02:18.9]} 13. Bh3 {[%clk 0:02:17.3]} 13... b5 {[%clk
0:02:12.1]} 14. Ne2 {[%clk 0:02:04.8]} 14... Nb6 {[%clk 0:02:09.4]} 15. Bxc8
{[%clk 0:02:00]} 15... Nxc8 {[%clk 0:02:10.3]} 16. Nf4 {[%clk 0:01:58]} 16...
Ne7 {[%clk 0:01:56.5]} 17. Kf1 {[%clk 0:01:53.4]} 17... Nd7 {[%clk 0:01:54.8]}
18. Qg4 {[%clk 0:01:52.5]} 18... O-O-O {[%clk 0:01:35.7]} 19. a4 {[%clk
0:01:45]} 19... Kb7 {[%clk 0:01:35.8]} 20. axb5 {[%clk 0:01:42.3]} 20... axb5
{[%clk 0:01:34.9]} 21. Kg2 {[%clk 0:01:41.3]} 21... f5 {[%clk 0:01:21.1]} 22.
Qg3 {[%clk 0:01:16.9]} 22... gxh5 {[%clk 0:01:21.3]} 23. Nxh5 {[%clk 0:01:09.2]}
23... Qxg3+ {[%clk 0:01:18.2]} 24. Kxg3 {[%clk 0:00:24]} 24... Rdg8 {[%clk
0:01:11.2]} 25. Kf4 {[%clk 0:00:24.3]} 25... h6 {[%clk 0:01:06]} 26. Rag1 {[%clk
0:00:16.7]} 26... hxg5+ {[%clk 0:00:56.1]} 27. Rxg5 {[%clk 0:00:17.6]} 27...
Rxg5 {[%clk 0:00:56]} 28. Kxg5 {[%clk 0:00:18.5]} 28... Rg8+ {[%clk 0:00:56.4]}
29. Kh6 {[%clk 0:00:15]} 29... Rh8+ {[%clk 0:00:34.5]} 30. Kg5 {[%clk 0:00:12]}
30... Rg8+ {[%clk 0:00:33.4]} 31. Kh6 {[%clk 0:00:11.8]} 31... Rh8+ {[%clk
0:00:29.7]} 32. Kg5 {[%clk 0:00:11.9]} 1/2-1/2

[Event "Early-Titled-Tuesday-Blitz-October-24-2023"]
[Site "Chess.com"]
[Date "2023.10.24"]
[Round "10"]
[White "OLDTERMINATOR"]
[Black "Aash20"]
[Result "0-1"]
[WhiteElo "1700"]
[BlackElo "2505"]
[TimeControl "180+1"]
[EndTime "9:52:17 PDT"]
[Termination "Aash20 won by resignation"]

1. e4 {[%clk 0:02:59.4]} 1... c5 {[%clk 0:02:58.8]} 2. Nf3 {[%clk 0:02:58.3]}
2... d6 {[%clk 0:02:58.2]} 3. d4 {[%clk 0:02:56.3]} 3... cxd4 {[%clk 0:02:59.1]}
4. Nxd4 {[%clk 0:02:56.3]} 4... Nf6 {[%clk 0:02:59.2]} 5. Nc3 {[%clk 0:02:56.1]}
5... g6 {[%clk 0:02:59.5]} 6. Be3 {[%clk 0:02:54.4]} 6... Bg7 {[%clk 0:02:59.9]}
7. Bc4 {[%clk 0:02:54.2]} 7... O-O {[%clk 0:03:00.2]} 8. f3 {[%clk 0:02:54.2]}
8... Nc6 {[%clk 0:03:00.7]} 9. Qd2 {[%clk 0:02:54.8]} 9... Ne5 {[%clk 0:03:00]}
10. Bb3 {[%clk 0:02:54.1]} 10... Bd7 {[%clk 0:03:00.6]} 11. O-O-O {[%clk
0:02:53.3]} 11... Qa5 {[%clk 0:03:00.9]} 12. h4 {[%clk 0:02:52.5]} 12... Rfc8
{[%clk 0:02:59.3]} 13. Nde2 {[%clk 0:02:52.3]} 13... Nc4 {[%clk 0:02:56.8]} 14.
Bxc4 {[%clk 0:02:50.9]} 14... Rxc4 {[%clk 0:02:56.5]} 15. Kb1 {[%clk 0:02:50.7]}
15... Rac8 {[%clk 0:02:54.9]} 16. Rc1 {[%clk 0:02:48]} 16... Be6 {[%clk
0:02:51.1]} 17. Nd5 {[%clk 0:02:20.6]} 17... Qxd2 {[%clk 0:02:45.9]} 18. Nxf6+
{[%clk 0:02:11.7]} 18... Bxf6 {[%clk 0:02:45.3]} 19. Bxd2 {[%clk 0:02:11.6]}
19... R8c6 {[%clk 0:02:43.5]} 20. Bc3 {[%clk 0:02:11.2]} 20... Bxc3 {[%clk
0:02:39.8]} 21. Nxc3 {[%clk 0:02:10.5]} 21... Rb6 {[%clk 0:02:40.4]} 22. Ka1
{[%clk 0:02:04.8]} 22... Ra6 {[%clk 0:02:36.3]} 23. h5 {[%clk 0:01:35.1]} 23...
Kg7 {[%clk 0:02:29.1]} 24. hxg6 {[%clk 0:01:33.9]} 24... hxg6 {[%clk 0:02:30]}
25. a3 {[%clk 0:01:32.6]} 25... Ra5 {[%clk 0:02:21.2]} 26. Rcd1 {[%clk
0:01:29.3]} 26... b5 {[%clk 0:02:18.6]} 27. Kb1 {[%clk 0:01:18.8]} 27... b4
{[%clk 0:02:17.3]} 28. axb4 {[%clk 0:01:10.2]} 28... Rxb4 {[%clk 0:02:16.6]} 29.
Nd5 {[%clk 0:00:53.2]} 29... Bxd5 {[%clk 0:02:14.2]} 30. exd5 {[%clk 0:00:51.4]}
30... Rab5 {[%clk 0:02:11.7]} 31. b3 {[%clk 0:00:47.1]} 31... a5 {[%clk
0:02:10.7]} 32. Kc1 {[%clk 0:00:42.4]} 32... a4 {[%clk 0:02:10.3]} 33. bxa4
{[%clk 0:00:39.4]} 33... Rxa4 {[%clk 0:02:10]} 34. Rhe1 {[%clk 0:00:39.4]} 34...
Ra1+ {[%clk 0:02:08]} 35. Kd2 {[%clk 0:00:38.5]} 35... Rxd5+ {[%clk 0:02:08.5]}
36. Ke2 {[%clk 0:00:31.1]} 36... Raxd1 {[%clk 0:02:06.2]} 37. Rxd1 {[%clk
0:00:29.9]} 37... Rxd1 {[%clk 0:02:06.8]} 38. Kxd1 {[%clk 0:00:29]} 38... Kf6
{[%clk 0:02:07.7]} 39. Kd2 {[%clk 0:00:29.1]} 39... Ke5 {[%clk 0:02:08.1]} 40.
Ke3 {[%clk 0:00:29.1]} 40... g5 {[%clk 0:02:07.1]} 41. g4 {[%clk 0:00:24.5]}
41... e6 {[%clk 0:02:06.7]} 42. c3 {[%clk 0:00:24]} 42... f5 {[%clk 0:02:06.4]}
43. c4 {[%clk 0:00:20.6]} 43... d5 {[%clk 0:01:34.8]} 44. c5 {[%clk 0:00:15.6]}
44... fxg4 {[%clk 0:01:33]} 45. fxg4 {[%clk 0:00:14.9]} 45... Kf6 {[%clk
0:01:29.1]} 46. c6 {[%clk 0:00:13.2]} 46... Ke7 {[%clk 0:01:29.1]} 47. Kd4
{[%clk 0:00:10.8]} 47... Kd6 {[%clk 0:01:29.3]} 48. c7 {[%clk 0:00:06]} 48...
Kxc7 {[%clk 0:01:28.8]} 49. Ke5 {[%clk 0:00:06]} 49... Kd7 {[%clk 0:01:28]} 0-1

[Event "Early-Titled-Tuesday-Blitz-October-24-2023"]
[Site "Chess.com"]
[Date "2023.10.24"]
[Round "10"]
[White "Wizard_97"]
[Black "Barmen_EV"]
[Result "1-0"]
[WhiteElo "2618"]
[BlackElo "2498"]
[TimeControl "180+1"]
[EndTime "9:52:21 PDT"]
[Termination "Wizard_97 won by checkmate"]

1. e4 {[%clk 0:03:00.9]} 1... e5 {[%clk 0:02:59.5]} 2. Nf3 {[%clk 0:03:00.8]}
2... Nc6 {[%clk 0:03:00.2]} 3. Bc4 {[%clk 0:03:01.1]} 3... Nf6 {[%clk
0:03:00.4]} 4. d3 {[%clk 0:03:01.4]} 4... Bc5 {[%clk 0:02:59.6]} 5. c3 {[%clk
0:03:01.8]} 5... d6 {[%clk 0:02:59.5]} 6. Nbd2 {[%clk 0:03:02.3]} 6... O-O
{[%clk 0:02:59.3]} 7. h3 {[%clk 0:03:02.5]} 7... h6 {[%clk 0:02:56.7]} 8. Bb3
{[%clk 0:03:03.1]} 8... d5 {[%clk 0:02:56.1]} 9. Qe2 {[%clk 0:03:03.1]} 9... a6
{[%clk 0:02:55.6]} 10. Nf1 {[%clk 0:03:02.9]} 10... Be6 {[%clk 0:02:53]} 11. Ng3
{[%clk 0:03:02.4]} 11... dxe4 {[%clk 0:02:53.4]} 12. dxe4 {[%clk 0:03:01]} 12...
Qe7 {[%clk 0:02:51.1]} 13. O-O {[%clk 0:03:00.2]} 13... Rad8 {[%clk 0:02:49.2]}
14. Nh4 {[%clk 0:02:59.1]} 14... Bxb3 {[%clk 0:02:30.1]} 15. axb3 {[%clk
0:02:58.6]} 15... Qe6 {[%clk 0:02:30.8]} 16. b4 {[%clk 0:02:54.5]} 16... Bb6
{[%clk 0:02:26.2]} 17. Nhf5 {[%clk 0:02:52.7]} 17... Ne7 {[%clk 0:02:22.1]} 18.
Nxe7+ {[%clk 0:02:51.2]} 18... Qxe7 {[%clk 0:02:22.3]} 19. Nf5 {[%clk
0:02:51.8]} 19... Qd7 {[%clk 0:02:12.6]} 20. Qf3 {[%clk 0:02:50.1]} 20... Qd3
{[%clk 0:01:53.4]} 21. Nxh6+ {[%clk 0:02:44.5]} 21... Kh8 {[%clk 0:01:44.3]} 22.
Qxd3 {[%clk 0:02:26.3]} 22... Rxd3 {[%clk 0:01:43.5]} 23. Ng4 {[%clk 0:02:26.5]}
23... Nxg4 {[%clk 0:01:00]} 24. hxg4 {[%clk 0:02:26.4]} 24... Rg3 {[%clk
0:01:00.7]} 25. g5 {[%clk 0:02:22.9]} 25... Rd8 {[%clk 0:00:50.3]} 26. Kh2
{[%clk 0:02:08]} 26... Rgd3 {[%clk 0:00:43.6]} 27. g6 {[%clk 0:01:37.9]} 27...
f6 {[%clk 0:00:35.4]} 28. c4 {[%clk 0:01:32.4]} 28... Rd1 {[%clk 0:00:31.6]} 29.
Rxd1 {[%clk 0:01:30.7]} 29... Rxd1 {[%clk 0:00:29]} 30. c5 {[%clk 0:01:31.1]}
30... Ba7 {[%clk 0:00:28.2]} 31. b3 {[%clk 0:01:31.3]} 31... Kg8 {[%clk
0:00:11.9]} 32. Bb2 {[%clk 0:01:28.4]} 32... Rxa1 {[%clk 0:00:06.5]} 33. Bxa1
{[%clk 0:01:29.3]} 33... a5 {[%clk 0:00:03.8]} 34. Bc3 {[%clk 0:01:28.8]} 34...
axb4 {[%clk 0:00:02.2]} 35. Bxb4 {[%clk 0:01:29.7]} 35... c6 {[%clk 0:00:02]}
36. Kg3 {[%clk 0:01:27.6]} 36... Kf8 {[%clk 0:00:02.6]} 37. Kg4 {[%clk
0:01:26.5]} 37... Ke7 {[%clk 0:00:02.8]} 38. Kf5 {[%clk 0:01:26.8]} 38... Kd7
{[%clk 0:00:02.7]} 39. g4 {[%clk 0:01:25.8]} 39... b6 {[%clk 0:00:02.8]} 40.
cxb6 {[%clk 0:01:21.8]} 40... Bxb6 {[%clk 0:00:03]} 41. Bf8 {[%clk 0:01:22.1]}
41... c5 {[%clk 0:00:02.1]} 42. Bxg7 {[%clk 0:01:22.3]} 42... Bc7 {[%clk
0:00:02.9]} 43. Bxf6 {[%clk 0:01:22.7]} 43... Kc6 {[%clk 0:00:03.6]} 44. Bxe5
{[%clk 0:01:23]} 44... Bb6 {[%clk 0:00:03.5]} 45. g7 {[%clk 0:01:23.3]} 45... c4
{[%clk 0:00:04.4]} 46. bxc4 {[%clk 0:01:23.1]} 46... Bd4 {[%clk 0:00:04.2]} 47.
g8=Q {[%clk 0:01:24]} 47... Bxe5 {[%clk 0:00:05]} 48. Qd5+ {[%clk 0:01:24.4]}
48... Kb6 {[%clk 0:00:05.3]} 49. Kxe5 {[%clk 0:01:25.3]} 49... Ka6 {[%clk
0:00:06.2]} 50. g5 {[%clk 0:01:26.2]} 50... Kb6 {[%clk 0:00:06.3]} 51. g6 {[%clk
0:01:27.1]} 51... Kc7 {[%clk 0:00:07]} 52. g7 {[%clk 0:01:28]} 52... Kb6 {[%clk
0:00:07.9]} 53. g8=Q {[%clk 0:01:28.9]} 53... Ka7 {[%clk 0:00:08.8]} 54. Qgf7+
{[%clk 0:01:29.2]} 54... Kb6 {[%clk 0:00:09.7]} 55. Qfe6+ {[%clk 0:01:29.7]}
55... Ka7 {[%clk 0:00:09.6]} 56. Qdd7+ {[%clk 0:01:30.6]} 56... Ka8 {[%clk
0:00:10.5]} 57. Qee8# {[%clk 0:01:31.5]} 1-0

[Event "Early-Titled-Tuesday-Blitz-October-24-2023"]
[Site "Chess.com"]
[Date "2023.10.24"]
[Round "10"]
[White "Giorno"]
[Black "SlippperyWhenWet"]
[Result "1-0"]
[WhiteElo "2537"]
[BlackElo "2361"]
[TimeControl "180+1"]
[EndTime "9:52:24 PDT"]
[Termination "Giorno won by checkmate"]

1. Nf3 {[%clk 0:01:47.5]} 1... Nf6 {[%clk 0:02:54.2]} 2. b3 {[%clk 0:01:46.6]}
2... g6 {[%clk 0:02:53.6]} 3. Bb2 {[%clk 0:01:47.5]} 3... Bg7 {[%clk 0:02:54.3]}
4. g3 {[%clk 0:01:48.1]} 4... O-O {[%clk 0:02:55]} 5. Bg2 {[%clk 0:01:48.8]}
5... d5 {[%clk 0:02:55.6]} 6. O-O {[%clk 0:01:48.9]} 6... c5 {[%clk 0:02:56.3]}
7. e3 {[%clk 0:01:48.5]} 7... Nc6 {[%clk 0:02:56.9]} 8. Ne5 {[%clk 0:01:48.7]}
8... Qc7 {[%clk 0:02:52.1]} 9. Nxc6 {[%clk 0:01:47.4]} 9... bxc6 {[%clk
0:02:50.3]} 10. d3 {[%clk 0:01:42.7]} 10... Bg4 {[%clk 0:02:42]} 11. Qe1 {[%clk
0:01:39.6]} 11... Qc8 {[%clk 0:02:30]} 12. Nd2 {[%clk 0:01:37.3]} 12... Bh3
{[%clk 0:02:30]} 13. Qe2 {[%clk 0:01:34.7]} 13... Bxg2 {[%clk 0:02:28.8]} 14.
Kxg2 {[%clk 0:01:35.6]} 14... a5 {[%clk 0:02:25.3]} 15. a4 {[%clk 0:01:34.9]}
15... Rb8 {[%clk 0:02:24.8]} 16. Bc3 {[%clk 0:01:34.1]} 16... Qc7 {[%clk
0:02:16.5]} 17. Nf3 {[%clk 0:01:32]} 17... Nd7 {[%clk 0:02:13.2]} 18. Bxg7
{[%clk 0:01:32]} 18... Kxg7 {[%clk 0:02:12.3]} 19. e4 {[%clk 0:01:32.9]} 19...
e5 {[%clk 0:02:11]} 20. Rae1 {[%clk 0:01:21.2]} 20... f6 {[%clk 0:02:10.8]} 21.
h4 {[%clk 0:01:21.1]} 21... Rbe8 {[%clk 0:02:00.1]} 22. h5 {[%clk 0:01:20.7]}
22... Qd6 {[%clk 0:01:50.1]} 23. Rh1 {[%clk 0:01:19.3]} 23... c4 {[%clk
0:01:42.9]} 24. bxc4 {[%clk 0:01:16.7]} 24... dxc4 {[%clk 0:01:42.9]} 25. dxc4
{[%clk 0:01:13.3]} 25... Nc5 {[%clk 0:01:43.4]} 26. Rd1 {[%clk 0:01:07.6]} 26...
Qe6 {[%clk 0:01:42.6]} 27. Qe3 {[%clk 0:01:03.5]} 27... Qxc4 {[%clk 0:01:30]}
28. hxg6 {[%clk 0:01:02.8]} 28... hxg6 {[%clk 0:01:20.3]} 29. Qh6+ {[%clk
0:01:01.6]} 29... Kf7 {[%clk 0:01:20.6]} 30. Qh7+ {[%clk 0:00:59.4]} 30... Ke6
{[%clk 0:01:20.1]} 31. Qxg6 {[%clk 0:00:44.6]} 31... Qxe4 {[%clk 0:01:18.9]} 32.
Rh6 {[%clk 0:00:30.3]} 32... Qxg6 {[%clk 0:01:16.4]} 33. Rxg6 {[%clk 0:00:30.6]}
33... Rd8 {[%clk 0:01:07.8]} 34. Ra1 {[%clk 0:00:25.6]} 34... Rb8 {[%clk
0:01:02]} 35. Re1 {[%clk 0:00:22.1]} 35... Rfd8 {[%clk 0:00:56.9]} 36. Rh6
{[%clk 0:00:19.7]} 36... Rb4 {[%clk 0:00:52.6]} 37. Nxe5 {[%clk 0:00:19.8]}
37... Kf5 {[%clk 0:00:43.3]} 38. Nxc6 {[%clk 0:00:19.1]} 38... Rbb8 {[%clk
0:00:38.6]} 39. Ne7+ {[%clk 0:00:18.5]} 39... Kg5 {[%clk 0:00:37.3]} 40. Rg6+
{[%clk 0:00:18.7]} 40... Kh5 {[%clk 0:00:35.4]} 41. Rh1# {[%clk 0:00:19.5]} 1-0

[Event "Early-Titled-Tuesday-Blitz-October-24-2023"]
[Site "Chess.com"]
[Date "2023.10.24"]
[Round "10"]
[White "kingapolak"]
[Black "AlexandraSamaganova"]
[Result "1/2-1/2"]
[WhiteElo "2158"]
[BlackElo "2322"]
[TimeControl "180+1"]
[EndTime "9:52:29 PDT"]
[Termination "Game drawn by repetition"]

1. e4 {[%clk 0:03:00.9]} 1... c5 {[%clk 0:02:59.7]} 2. Nf3 {[%clk 0:03:00.6]}
2... e6 {[%clk 0:02:59.7]} 3. d4 {[%clk 0:02:58.9]} 3... cxd4 {[%clk 0:02:59.9]}
4. Nxd4 {[%clk 0:02:59.8]} 4... a6 {[%clk 0:03:00.4]} 5. Bd3 {[%clk 0:02:59.5]}
5... Qc7 {[%clk 0:03:00.7]} 6. Qe2 {[%clk 0:02:59.5]} 6... d6 {[%clk 0:02:58]}
7. O-O {[%clk 0:02:46.5]} 7... Nf6 {[%clk 0:02:56.4]} 8. c4 {[%clk 0:02:42.1]}
8... b6 {[%clk 0:02:53.6]} 9. Nc3 {[%clk 0:02:40.7]} 9... Bb7 {[%clk 0:02:54]}
10. Nd5 {[%clk 0:02:39.8]} 10... Qd8 {[%clk 0:02:30.3]} 11. Re1 {[%clk 0:02:31]}
11... Be7 {[%clk 0:02:20.5]} 12. Nxe7 {[%clk 0:02:24.5]} 12... Qxe7 {[%clk
0:02:20]} 13. b4 {[%clk 0:02:02.9]} 13... O-O {[%clk 0:02:17.7]} 14. Bb2 {[%clk
0:02:03.2]} 14... Nbd7 {[%clk 0:02:09.5]} 15. Rac1 {[%clk 0:02:00.4]} 15... Rfc8
{[%clk 0:01:59.7]} 16. f4 {[%clk 0:01:56.5]} 16... Ne8 {[%clk 0:00:55.4]} 17. e5
{[%clk 0:01:44.7]} 17... dxe5 {[%clk 0:00:47.8]} 18. fxe5 {[%clk 0:01:45.6]}
18... Qxb4 {[%clk 0:00:41.3]} 19. Rf1 {[%clk 0:01:19.1]} 19... Nxe5 {[%clk
0:00:22.8]} 20. Qxe5 {[%clk 0:00:49.4]} 20... Qxb2 {[%clk 0:00:22.5]} 21. Bxh7+
{[%clk 0:00:17.7]} 21... Kxh7 {[%clk 0:00:09.1]} 22. Qh5+ {[%clk 0:00:17.3]}
22... Kg8 {[%clk 0:00:09.5]} 23. Qxf7+ {[%clk 0:00:16.6]} 23... Kh7 {[%clk
0:00:09.5]} 24. Qh5+ {[%clk 0:00:12.5]} 24... Kg8 {[%clk 0:00:09.8]} 25. Qf7+
{[%clk 0:00:09.7]} 25... Kh7 {[%clk 0:00:10.2]} 26. Qh5+ {[%clk 0:00:08.7]}
26... Kg8 {[%clk 0:00:10.3]} 27. Qf7+ {[%clk 0:00:08.7]} 1/2-1/2